[Event "*** Titled Tuesday Blitz"]
[Site "Chess.com"]
[Date "2020.04.28"]
[Round "8"]
[White "ShieldingOff"]
[Black "ChessMavenYeti"]
[Result "1-0"]
[WhiteElo "2024"]
[BlackElo "2160"]
[TimeControl "180+1"]
[EndTime "11:33:35 PDT"]
[Termination "ShieldingOff won by checkmate"]

1. d4 {[%clk 0:03:00.9]} 1... Nf6 {[%clk 0:02:58.4]} 2. c4 {[%clk 0:02:56.7]}
2... e6 {[%clk 0:02:57.8]} 3. g3 {[%clk 0:02:56.1]} 3... c5 {[%clk 0:02:54.9]}
4. d5 {[%clk 0:02:54]} 4... exd5 {[%clk 0:02:54.8]} 5. cxd5 {[%clk 0:02:54.1]}
5... d6 {[%clk 0:02:55.7]} 6. Bg2 {[%clk 0:02:54]} 6... g6 {[%clk 0:02:56.1]} 7.
Nc3 {[%clk 0:02:54.4]} 7... Bg7 {[%clk 0:02:56.5]} 8. Nf3 {[%clk 0:02:53.9]}
8... O-O {[%clk 0:02:56.9]} 9. O-O {[%clk 0:02:54]} 9... Re8 {[%clk 0:02:56.5]}
10. Nd2 {[%clk 0:02:51]} 10... Nbd7 {[%clk 0:02:38.8]} 11. e4 {[%clk 0:02:49.8]}
11... Ne5 {[%clk 0:02:35.4]} 12. Qc2 {[%clk 0:02:35.8]} 12... Rb8 {[%clk
0:02:19.5]} 13. a4 {[%clk 0:02:34.4]} 13... a6 {[%clk 0:02:19.2]} 14. a5 {[%clk
0:02:30.9]} 14... b5 {[%clk 0:02:17.1]} 15. axb6 {[%clk 0:02:29.9]} 15... Rxb6
{[%clk 0:02:17.2]} 16. f4 {[%clk 0:02:25.7]} 16... Neg4 {[%clk 0:02:16.8]} 17.
Nc4 {[%clk 0:02:24.5]} 17... Rb4 {[%clk 0:02:14.8]} 18. Na5 {[%clk 0:01:37.9]}
18... Qb6 {[%clk 0:02:07.2]} 19. Nc6 {[%clk 0:01:32.7]} 19... Rbxe4 {[%clk
0:01:40.5]} 20. Nxe4 {[%clk 0:01:26.8]} 20... Nxe4 {[%clk 0:01:33.5]} 21. Bxe4
{[%clk 0:01:22.6]} 21... c4+ {[%clk 0:01:27.2]} 22. Kh1 {[%clk 0:01:18.9]} 22...
Rxe4 {[%clk 0:01:11]} 23. Qxe4 {[%clk 0:01:17.4]} 23... Nf2+ {[%clk 0:01:07.7]}
24. Rxf2 {[%clk 0:01:13]} 24... Qxf2 {[%clk 0:01:08.6]} 25. Be3 {[%clk
0:01:09.3]} 25... Qxb2 {[%clk 0:01:08.1]} 26. Qe8+ {[%clk 0:01:01.1]} 26... Bf8
{[%clk 0:01:07.7]} 27. Bd4 {[%clk 0:01:01.3]} 27... Qc2 {[%clk 0:01:01.8]} 28.
Ne7# {[%clk 0:01:00.8]} 1-0

[Event "*** Titled Tuesday Blitz"]
[Site "Chess.com"]
[Date "2020.04.28"]
[Round "8"]
[White "erlesfar"]
[Black "turayev_shahruh17"]
[Result "0-1"]
[WhiteElo "2367"]
[BlackElo "2528"]
[TimeControl "180+1"]
[EndTime "11:33:36 PDT"]
[Termination "turayev_shahruh17 won by resignation"]

1. e4 {[%clk 0:03:00.9]} 1... e6 {[%clk 0:03:00.3]} 2. d4 {[%clk 0:03:00.1]}
2... d5 {[%clk 0:03:00.9]} 3. e5 {[%clk 0:02:59.6]} 3... c5 {[%clk 0:03:00.9]}
4. c3 {[%clk 0:02:59]} 4... Qb6 {[%clk 0:03:01.4]} 5. Nf3 {[%clk 0:02:58.7]}
5... Nc6 {[%clk 0:03:01.8]} 6. Bd3 {[%clk 0:02:57.6]} 6... cxd4 {[%clk
0:03:01.2]} 7. cxd4 {[%clk 0:02:56.4]} 7... Bd7 {[%clk 0:03:02.1]} 8. O-O {[%clk
0:02:56.1]} 8... Nxd4 {[%clk 0:03:01.7]} 9. Ng5 {[%clk 0:02:55.9]} 9... Nh6
{[%clk 0:02:34]} 10. Nc3 {[%clk 0:02:53.8]} 10... Ndf5 {[%clk 0:02:27.9]} 11. a3
{[%clk 0:02:22.7]} 11... Be7 {[%clk 0:02:22.2]} 12. Qh5 {[%clk 0:02:10.8]} 12...
g6 {[%clk 0:02:14.2]} 13. Qh3 {[%clk 0:02:08.4]} 13... Qd4 {[%clk 0:02:07.2]}
14. Re1 {[%clk 0:01:57.1]} 14... Rc8 {[%clk 0:01:59.2]} 15. Bf1 {[%clk 0:01:23]}
15... Ng4 {[%clk 0:01:54.6]} 16. Re2 {[%clk 0:01:11]} 16... Nxe5 {[%clk
0:01:45.1]} 17. Nf3 {[%clk 0:01:02.2]} 17... Nxf3+ {[%clk 0:01:40.7]} 18. Qxf3
{[%clk 0:01:01.8]} 18... O-O {[%clk 0:01:32.8]} 19. Bf4 {[%clk 0:01:00.4]} 19...
Bd6 {[%clk 0:01:20.2]} 20. Rd2 {[%clk 0:00:57.6]} 20... Qxf4 {[%clk 0:01:19.4]}
21. Qxf4 {[%clk 0:00:56.5]} 21... Bxf4 {[%clk 0:01:20.3]} 22. Rdd1 {[%clk
0:00:55.1]} 22... Be5 {[%clk 0:01:15.1]} 23. Nxd5 {[%clk 0:00:53.5]} 23... exd5
{[%clk 0:01:10.8]} 24. Rxd5 {[%clk 0:00:53]} 24... Bxb2 {[%clk 0:01:11.3]} 25.
Rb1 {[%clk 0:00:52.9]} 25... Be6 {[%clk 0:01:10.9]} 0-1

[Event "*** Titled Tuesday Blitz"]
[Site "Chess.com"]
[Date "2020.04.28"]
[Round "8"]
[White "Shield12"]
[Black "IljaJoke"]
[Result "1-0"]
[WhiteElo "2826"]
[BlackElo "2480"]
[TimeControl "180+1"]
[EndTime "11:33:37 PDT"]
[Termination "Shield12 won by resignation"]

1. e4 {[%clk 0:03:00.9]} 1... e5 {[%clk 0:02:59.9]} 2. Nf3 {[%clk 0:02:59.4]}
2... Nc6 {[%clk 0:03:00.2]} 3. Bb5 {[%clk 0:02:58.7]} 3... a6 {[%clk 0:03:00.3]}
4. Ba4 {[%clk 0:02:59.1]} 4... Nf6 {[%clk 0:03:00.4]} 5. O-O {[%clk 0:02:59.3]}
5... b5 {[%clk 0:03:00.8]} 6. Bb3 {[%clk 0:02:59.2]} 6... Bc5 {[%clk 0:03:01.4]}
7. a4 {[%clk 0:02:59.1]} 7... Rb8 {[%clk 0:03:01.4]} 8. c3 {[%clk 0:02:59.4]}
8... d6 {[%clk 0:03:01.4]} 9. d4 {[%clk 0:03:00]} 9... Bb6 {[%clk 0:03:01.9]}
10. a5 {[%clk 0:03:00.5]} 10... Ba7 {[%clk 0:03:01.8]} 11. h3 {[%clk 0:03:00.9]}
11... Bb7 {[%clk 0:03:01.8]} 12. Be3 {[%clk 0:02:55.4]} 12... Nxe4 {[%clk
0:02:56]} 13. Re1 {[%clk 0:02:21.4]} 13... exd4 {[%clk 0:02:55]} 14. Nxd4 {[%clk
0:02:19.6]} 14... Nxd4 {[%clk 0:02:50.2]} 15. Bxd4 {[%clk 0:02:19.3]} 15... c5
{[%clk 0:02:21.5]} 16. Bxg7 {[%clk 0:02:17.5]} 16... Qg5 {[%clk 0:01:24.2]} 17.
Bxh8 {[%clk 0:02:01]} 17... Kd7 {[%clk 0:01:24.5]} 18. Qf3 {[%clk 0:01:51.2]}
18... c4 {[%clk 0:00:52.4]} 19. Bd4 {[%clk 0:01:44.2]} 19... Bxd4 {[%clk
0:00:37.9]} 20. cxd4 {[%clk 0:01:43.6]} 20... f5 {[%clk 0:00:32.8]} 21. Bc2
{[%clk 0:01:36.1]} 21... Re8 {[%clk 0:00:22.2]} 22. Nc3 {[%clk 0:01:31.9]} 22...
b4 {[%clk 0:00:19.8]} 23. Nxe4 {[%clk 0:01:30.1]} 23... fxe4 {[%clk 0:00:20]}
24. Bxe4 {[%clk 0:01:30]} 1-0

[Event "*** Titled Tuesday Blitz"]
[Site "Chess.com"]
[Date "2020.04.28"]
[Round "8"]
[White "FMOlexandrProhorov"]
[Black "BvsN"]
[Result "0-1"]
[WhiteElo "2092"]
[BlackElo "2377"]
[TimeControl "180+1"]
[EndTime "11:33:40 PDT"]
[Termination "BvsN won by checkmate"]

1. e4 {[%clk 0:03:00.9]} 1... c5 {[%clk 0:02:59.2]} 2. c3 {[%clk 0:03:00.6]}
2... Nf6 {[%clk 0:02:57.9]} 3. e5 {[%clk 0:03:00.9]} 3... Nd5 {[%clk 0:02:57.1]}
4. Bc4 {[%clk 0:03:01.6]} 4... Nb6 {[%clk 0:02:51.2]} 5. Bb3 {[%clk 0:03:01.5]}
5... Nc6 {[%clk 0:02:49.5]} 6. Nf3 {[%clk 0:03:00.2]} 6... c4 {[%clk 0:02:47.4]}
7. Bc2 {[%clk 0:03:00]} 7... Qc7 {[%clk 0:02:47.9]} 8. Qe2 {[%clk 0:02:59.6]}
8... g5 {[%clk 0:02:48.3]} 9. h3 {[%clk 0:02:59.8]} 9... Bg7 {[%clk 0:02:47.6]}
10. e6 {[%clk 0:02:56.9]} 10... dxe6 {[%clk 0:02:44.5]} 11. Nxg5 {[%clk
0:02:56.8]} 11... Qe5 {[%clk 0:02:27.7]} 12. Qxe5 {[%clk 0:02:51.9]} 12... Nxe5
{[%clk 0:02:27.6]} 13. Ke2 {[%clk 0:02:52.3]} 13... Bd7 {[%clk 0:02:26.1]} 14.
f4 {[%clk 0:02:50.6]} 14... Nd3 {[%clk 0:02:23]} 15. Bxd3 {[%clk 0:02:50.1]}
15... cxd3+ {[%clk 0:02:23.4]} 16. Kxd3 {[%clk 0:02:50.8]} 16... O-O-O {[%clk
0:02:24.2]} 17. Ke2 {[%clk 0:02:51]} 17... Bb5+ {[%clk 0:02:14.9]} 18. Kf2
{[%clk 0:02:49]} 18... Rd3 {[%clk 0:01:59.5]} 19. Re1 {[%clk 0:02:39.6]} 19...
Nd5 {[%clk 0:01:43]} 20. Na3 {[%clk 0:02:34.1]} 20... Bc6 {[%clk 0:01:37.5]} 21.
g3 {[%clk 0:02:28.6]} 21... Bf6 {[%clk 0:01:28.8]} 22. Nxf7 {[%clk 0:02:24.7]}
22... Rg8 {[%clk 0:01:23.7]} 23. Rg1 {[%clk 0:02:21.6]} 23... Nxf4 {[%clk
0:00:32.9]} 24. gxf4 {[%clk 0:01:51.3]} 24... Rf3+ {[%clk 0:00:32.3]} 25. Ke2
{[%clk 0:01:51.3]} 25... Rxg1 {[%clk 0:00:31.9]} 26. b4 {[%clk 0:01:48.6]} 26...
Rg2+ {[%clk 0:00:27.5]} 27. Kd1 {[%clk 0:01:48]} 27... Be4 {[%clk 0:00:24.2]}
28. d4 {[%clk 0:01:31]} 28... Rf1# {[%clk 0:00:20.7]} 0-1

[Event "*** Titled Tuesday Blitz"]
[Site "Chess.com"]
[Date "2020.04.28"]
[Round "8"]
[White "aNaartjieZA"]
[Black "djano"]
[Result "1-0"]
[WhiteElo "2597"]
[BlackElo "2452"]
[TimeControl "180+1"]
[EndTime "11:33:43 PDT"]
[Termination "aNaartjieZA won by resignation"]

1. e4 {[%clk 0:03:00.9]} 1... e5 {[%clk 0:02:58.3]} 2. Nf3 {[%clk 0:03:00.9]}
2... Nc6 {[%clk 0:02:57.9]} 3. Bc4 {[%clk 0:03:01]} 3... Nf6 {[%clk 0:02:57.5]}
4. d3 {[%clk 0:03:01.3]} 4... h6 {[%clk 0:02:56.8]} 5. O-O {[%clk 0:03:01.4]}
5... g6 {[%clk 0:02:57.2]} 6. c3 {[%clk 0:03:00.7]} 6... Bg7 {[%clk 0:02:57.3]}
7. Re1 {[%clk 0:03:00.6]} 7... O-O {[%clk 0:02:56.1]} 8. Bb3 {[%clk 0:03:00.5]}
8... d6 {[%clk 0:02:54.8]} 9. Nbd2 {[%clk 0:03:00]} 9... Na5 {[%clk 0:02:51.7]}
10. Bc2 {[%clk 0:02:59.6]} 10... c5 {[%clk 0:02:52.1]} 11. Nf1 {[%clk 0:02:58]}
11... Nc6 {[%clk 0:02:49.5]} 12. Ng3 {[%clk 0:02:58]} 12... Nh7 {[%clk
0:02:40.1]} 13. Bb3 {[%clk 0:02:57]} 13... Qe8 {[%clk 0:02:38]} 14. Be3 {[%clk
0:02:54.6]} 14... Be6 {[%clk 0:02:37.4]} 15. Qd2 {[%clk 0:02:54.4]} 15... h5
{[%clk 0:02:32.7]} 16. Bh6 {[%clk 0:02:51.8]} 16... Na5 {[%clk 0:02:30.5]} 17.
Bxe6 {[%clk 0:02:49.4]} 17... Qxe6 {[%clk 0:02:30.5]} 18. Bxg7 {[%clk
0:02:48.9]} 18... Kxg7 {[%clk 0:02:31.4]} 19. Ng5 {[%clk 0:02:47.4]} 19... Qe7
{[%clk 0:02:23.8]} 20. Nxh7 {[%clk 0:02:44.7]} 20... Kxh7 {[%clk 0:02:24.7]} 21.
Qe2 {[%clk 0:02:39]} 21... Qg5 {[%clk 0:02:16.8]} 22. Qf3 {[%clk 0:02:37.8]}
22... Nc6 {[%clk 0:02:13.3]} 23. Nf1 {[%clk 0:02:37.8]} 23... f5 {[%clk
0:02:11]} 24. exf5 {[%clk 0:02:33.9]} 24... gxf5 {[%clk 0:02:03.9]} 25. Qg3
{[%clk 0:02:26.1]} 25... Qh6 {[%clk 0:02:01]} 26. Qh4 {[%clk 0:02:19.8]} 26...
Rg8 {[%clk 0:01:57.1]} 27. Kh1 {[%clk 0:02:18.2]} 27... Rg4 {[%clk 0:01:56.2]}
28. Qh3 {[%clk 0:02:16]} 28... f4 {[%clk 0:01:48.1]} 29. f3 {[%clk 0:02:12.5]}
29... Rg5 {[%clk 0:01:48.3]} 30. Nd2 {[%clk 0:02:06.5]} 30... Rag8 {[%clk
0:01:46.2]} 31. Re2 {[%clk 0:02:06.4]} 31... Qg6 {[%clk 0:01:31]} 32. Ne4 {[%clk
0:02:03.4]} 32... Rf5 {[%clk 0:01:19.2]} 33. Nxd6 {[%clk 0:02:02.6]} 33... Rg5
{[%clk 0:01:09.9]} 34. Ne4 {[%clk 0:02:02]} 34... Rf5 {[%clk 0:01:09.7]} 35. Rg1
{[%clk 0:01:57.8]} 35... Ne7 {[%clk 0:01:03.8]} 36. Qh4 {[%clk 0:01:45.3]} 36...
Rg7 {[%clk 0:01:01.4]} 37. g4 {[%clk 0:01:41.7]} 37... fxg3 {[%clk 0:00:57.6]}
38. Rxg3 {[%clk 0:01:41.4]} 38... Qh6 {[%clk 0:00:57.1]} 39. Rxg7+ {[%clk
0:01:39.6]} 39... Kxg7 {[%clk 0:00:51.9]} 40. Qxe7+ {[%clk 0:01:38.5]} 1-0

[Event "*** Titled Tuesday Blitz"]
[Site "Chess.com"]
[Date "2020.04.28"]
[Round "8"]
[White "Azatic"]
[Black "KrakenBeast"]
[Result "1-0"]
[WhiteElo "2642"]
[BlackElo "2418"]
[TimeControl "180+1"]
[EndTime "11:33:43 PDT"]
[Termination "Azatic won by resignation"]

1. d4 {[%clk 0:03:00.9]} 1... Nf6 {[%clk 0:02:56.6]} 2. c4 {[%clk 0:03:00.7]}
2... g6 {[%clk 0:02:57.5]} 3. g3 {[%clk 0:03:00.4]} 3... Bg7 {[%clk 0:02:57.7]}
4. Bg2 {[%clk 0:03:01.3]} 4... O-O {[%clk 0:02:58.3]} 5. Nf3 {[%clk 0:03:02.2]}
5... d6 {[%clk 0:02:59]} 6. O-O {[%clk 0:03:02.7]} 6... Nbd7 {[%clk 0:02:59.7]}
7. Nc3 {[%clk 0:03:02.6]} 7... e5 {[%clk 0:03:00.3]} 8. dxe5 {[%clk 0:03:03]}
8... Nxe5 {[%clk 0:02:59.1]} 9. Nxe5 {[%clk 0:03:02.6]} 9... dxe5 {[%clk
0:03:00]} 10. e4 {[%clk 0:03:02.5]} 10... c6 {[%clk 0:02:59.1]} 11. Bg5 {[%clk
0:03:01.9]} 11... h6 {[%clk 0:02:57.4]} 12. Bxf6 {[%clk 0:03:00.1]} 12... Bxf6
{[%clk 0:02:52.5]} 13. Qc2 {[%clk 0:02:59.5]} 13... Be6 {[%clk 0:02:50.5]} 14.
Rad1 {[%clk 0:02:58.3]} 14... Qa5 {[%clk 0:02:50.6]} 15. b3 {[%clk 0:02:58]}
15... Rad8 {[%clk 0:02:49.1]} 16. Rxd8 {[%clk 0:02:51.3]} 16... Rxd8 {[%clk
0:02:48.2]} 17. h4 {[%clk 0:02:50]} 17... h5 {[%clk 0:02:47.7]} 18. Rd1 {[%clk
0:02:41.5]} 18... Rd4 {[%clk 0:02:48.1]} 19. Bf1 {[%clk 0:02:30.1]} 19... Be7
{[%clk 0:02:37.1]} 20. Rxd4 {[%clk 0:02:16.6]} 20... exd4 {[%clk 0:02:38]} 21.
Ne2 {[%clk 0:02:16.3]} 21... Bc5 {[%clk 0:02:09.4]} 22. Nf4 {[%clk 0:02:07.8]}
22... Bg4 {[%clk 0:02:02.7]} 23. Nd3 {[%clk 0:02:06.2]} 23... Be7 {[%clk
0:01:55.3]} 24. Be2 {[%clk 0:02:00.2]} 24... Bxe2 {[%clk 0:01:51.9]} 25. Qxe2
{[%clk 0:02:01.1]} 25... Qc3 {[%clk 0:01:52.2]} 26. Kg2 {[%clk 0:01:59.5]} 26...
a6 {[%clk 0:01:50.2]} 27. Ne5 {[%clk 0:01:52.9]} 27... Bd6 {[%clk 0:01:35.5]}
28. Nd3 {[%clk 0:01:47.8]} 28... b5 {[%clk 0:01:17.1]} 29. cxb5 {[%clk
0:01:47.1]} 29... axb5 {[%clk 0:01:16.5]} 30. e5 {[%clk 0:01:46.5]} 30... Be7
{[%clk 0:01:16.5]} 31. Nf4 {[%clk 0:01:31]} 31... Kg7 {[%clk 0:01:11.2]} 32. e6
{[%clk 0:01:29.3]} 32... f6 {[%clk 0:01:08.7]} 33. Qe4 {[%clk 0:01:25]} 33... f5
{[%clk 0:01:02.9]} 34. Qe5+ {[%clk 0:01:23]} 34... Bf6 {[%clk 0:01:03.3]} 35.
Qc7+ {[%clk 0:01:18.4]} 35... Kh6 {[%clk 0:01:03.9]} 36. Qf7 {[%clk 0:01:15.8]}
1-0

[Event "*** Titled Tuesday Blitz"]
[Site "Chess.com"]
[Date "2020.04.28"]
[Round "8"]
[White "cukin84"]
[Black "atwalcb"]
[Result "0-1"]
[WhiteElo "2091"]
[BlackElo "2280"]
[TimeControl "180+1"]
[EndTime "11:33:45 PDT"]
[Termination "atwalcb won by checkmate"]

1. e4 {[%clk 0:03:00.9]} 1... d6 {[%clk 0:02:59.9]} 2. d4 {[%clk 0:02:59]} 2...
Nf6 {[%clk 0:02:55.6]} 3. Nc3 {[%clk 0:02:58]} 3... Nbd7 {[%clk 0:02:52]} 4. Be3
{[%clk 0:02:57.1]} 4... e5 {[%clk 0:02:52.1]} 5. f3 {[%clk 0:02:55.3]} 5... c6
{[%clk 0:02:47.2]} 6. Qd2 {[%clk 0:02:54.9]} 6... b5 {[%clk 0:02:47.1]} 7. a3
{[%clk 0:02:53.8]} 7... a5 {[%clk 0:02:46.5]} 8. g4 {[%clk 0:02:52]} 8... h6
{[%clk 0:02:45.9]} 9. h4 {[%clk 0:02:51.4]} 9... Qc7 {[%clk 0:02:30.2]} 10. Nge2
{[%clk 0:02:49.2]} 10... Nb6 {[%clk 0:02:29.7]} 11. Ng3 {[%clk 0:02:48]} 11...
Bb7 {[%clk 0:02:22.4]} 12. O-O-O {[%clk 0:02:36.9]} 12... b4 {[%clk 0:02:20.8]}
13. Nb1 {[%clk 0:02:34.5]} 13... Nfd7 {[%clk 0:02:15.2]} 14. Be2 {[%clk
0:02:23.1]} 14... exd4 {[%clk 0:02:06]} 15. Bxd4 {[%clk 0:02:20.4]} 15... c5
{[%clk 0:02:06.3]} 16. Be3 {[%clk 0:02:16.2]} 16... Ne5 {[%clk 0:02:03.5]} 17.
Bb5+ {[%clk 0:02:04.7]} 17... Bc6 {[%clk 0:01:59.5]} 18. Qe2 {[%clk 0:01:58.7]}
18... c4 {[%clk 0:01:45.4]} 19. Bxb6 {[%clk 0:01:54.7]} 19... Qxb6 {[%clk
0:01:42.2]} 20. Bxc6+ {[%clk 0:01:54.9]} 20... Qxc6 {[%clk 0:01:40.9]} 21. Nf5
{[%clk 0:01:51.2]} 21... g6 {[%clk 0:01:32.5]} 22. Nd4 {[%clk 0:01:50.1]} 22...
Qc5 {[%clk 0:01:30.7]} 23. f4 {[%clk 0:01:46.8]} 23... Nc6 {[%clk 0:01:30.4]}
24. Nxc6 {[%clk 0:01:45.7]} 24... Qxc6 {[%clk 0:01:30.5]} 25. e5 {[%clk
0:01:41.6]} 25... O-O-O {[%clk 0:01:27.1]} 26. exd6 {[%clk 0:01:40.8]} 26...
Bxd6 {[%clk 0:01:26.8]} 27. Rhf1 {[%clk 0:01:32.3]} 27... Rhe8 {[%clk
0:01:23.1]} 28. Qf2 {[%clk 0:01:27.4]} 28... Bc5 {[%clk 0:01:19.9]} 29. Rxd8+
{[%clk 0:01:24.7]} 29... Rxd8 {[%clk 0:01:19.2]} 30. Qe2 {[%clk 0:01:24.6]}
30... Re8 {[%clk 0:01:17]} 31. Qf3 {[%clk 0:01:13.2]} 31... Be3+ {[%clk
0:01:15.2]} 32. Nd2 {[%clk 0:01:13.1]} 32... Qxf3 {[%clk 0:01:12.8]} 33. Rxf3
{[%clk 0:01:11.8]} 33... c3 {[%clk 0:01:13.2]} 34. bxc3 {[%clk 0:01:08.6]} 34...
bxc3 {[%clk 0:01:13.2]} 35. Rxe3 {[%clk 0:00:59.1]} 35... Rxe3 {[%clk
0:01:10.7]} 36. Nb3 {[%clk 0:00:59.1]} 36... Re1# {[%clk 0:01:10.6]} 0-1

[Event "*** Titled Tuesday Blitz"]
[Site "Chess.com"]
[Date "2020.04.28"]
[Round "8"]
[White "onnoelgersma"]
[Black "keepitcool9499"]
[Result "0-1"]
[WhiteElo "2296"]
[BlackElo "2452"]
[TimeControl "180+1"]
[EndTime "11:33:47 PDT"]
[Termination "keepitcool9499 won by resignation"]

1. e4 {[%clk 0:03:00.9]} 1... e6 {[%clk 0:02:33.3]} 2. d4 {[%clk 0:03:00.2]}
2... d5 {[%clk 0:02:33.9]} 3. Nc3 {[%clk 0:03:00.8]} 3... Nf6 {[%clk 0:02:33.3]}
4. e5 {[%clk 0:02:57]} 4... Nfd7 {[%clk 0:02:27.2]} 5. f4 {[%clk 0:02:56.8]}
5... c5 {[%clk 0:02:23.9]} 6. Nf3 {[%clk 0:02:57.4]} 6... Nc6 {[%clk 0:02:21.1]}
7. Be3 {[%clk 0:02:57.8]} 7... a6 {[%clk 0:02:19.1]} 8. Qd2 {[%clk 0:02:53.5]}
8... b5 {[%clk 0:02:16.5]} 9. dxc5 {[%clk 0:02:53.2]} 9... Bxc5 {[%clk
0:02:13.2]} 10. O-O-O {[%clk 0:02:48]} 10... O-O {[%clk 0:02:10.1]} 11. h4
{[%clk 0:02:37.7]} 11... Qb6 {[%clk 0:02:06.3]} 12. Bxc5 {[%clk 0:02:31.7]}
12... Nxc5 {[%clk 0:02:07.2]} 13. Bd3 {[%clk 0:02:27]} 13... b4 {[%clk
0:02:04.3]} 14. Ne2 {[%clk 0:02:17.2]} 14... a5 {[%clk 0:01:58.6]} 15. Ned4
{[%clk 0:02:06.9]} 15... Ba6 {[%clk 0:01:51.5]} 16. Nxc6 {[%clk 0:01:52.1]}
16... Qxc6 {[%clk 0:01:52.4]} 17. Bxa6 {[%clk 0:01:45.7]} 17... Rxa6 {[%clk
0:01:48.6]} 18. Nd4 {[%clk 0:01:45.7]} 18... Qb6 {[%clk 0:01:45.5]} 19. f5
{[%clk 0:01:43.5]} 19... Ne4 {[%clk 0:01:42.5]} 20. Qe3 {[%clk 0:01:27.5]} 20...
Rc8 {[%clk 0:01:36.7]} 21. Rhf1 {[%clk 0:00:59.4]} 21... Qc7 {[%clk 0:01:25.5]}
22. Qf4 {[%clk 0:00:51.7]} 22... a4 {[%clk 0:01:16]} 23. Kb1 {[%clk 0:00:40.3]}
23... a3 {[%clk 0:01:12.4]} 24. fxe6 {[%clk 0:00:36.6]} 24... fxe6 {[%clk
0:01:09.1]} 25. Nb5 {[%clk 0:00:36.4]} 25... Qxc2+ {[%clk 0:01:05.8]} 0-1

[Event "*** Titled Tuesday Blitz"]
[Site "Chess.com"]
[Date "2020.04.28"]
[Round "8"]
[White "Muracle"]
[Black "Olga_Zhuravleva"]
[Result "1-0"]
[WhiteElo "2675"]
[BlackElo "2274"]
[TimeControl "180+1"]
[EndTime "11:33:57 PDT"]
[Termination "Muracle won by resignation"]

1. Nf3 {[%clk 0:03:00.9]} 1... Nf6 {[%clk 0:02:56.1]} 2. g3 {[%clk 0:03:00.8]}
2... b6 {[%clk 0:02:55.1]} 3. Bg2 {[%clk 0:03:00.7]} 3... Bb7 {[%clk 0:02:55.7]}
4. O-O {[%clk 0:03:00.7]} 4... e6 {[%clk 0:02:56.1]} 5. c4 {[%clk 0:03:00.7]}
5... c5 {[%clk 0:02:55.6]} 6. Nc3 {[%clk 0:03:00.5]} 6... d6 {[%clk 0:02:55.2]}
7. Re1 {[%clk 0:03:00.5]} 7... Nbd7 {[%clk 0:02:55.2]} 8. e4 {[%clk 0:03:00.5]}
8... Be7 {[%clk 0:02:54.8]} 9. d4 {[%clk 0:03:00.5]} 9... cxd4 {[%clk
0:02:54.7]} 10. Nxd4 {[%clk 0:03:00.7]} 10... Qc7 {[%clk 0:02:24.9]} 11. Ndb5
{[%clk 0:02:49.7]} 11... Qb8 {[%clk 0:02:23.4]} 12. Bf4 {[%clk 0:02:46.4]} 12...
Ne5 {[%clk 0:02:12.5]} 13. b3 {[%clk 0:02:37.4]} 13... a6 {[%clk 0:02:06.1]} 14.
Nd4 {[%clk 0:02:36.7]} 14... Ned7 {[%clk 0:02:02.6]} 15. Nd5 {[%clk 0:02:29.1]}
15... Bxd5 {[%clk 0:01:10.2]} 16. exd5 {[%clk 0:02:27.2]} 16... e5 {[%clk
0:01:10.7]} 17. Nc6 {[%clk 0:02:25.4]} 17... Qc7 {[%clk 0:01:08.9]} 18. Be3
{[%clk 0:02:20.6]} 18... Bd8 {[%clk 0:01:01]} 19. f4 {[%clk 0:02:13.4]} 19... e4
{[%clk 0:00:53.9]} 20. g4 {[%clk 0:02:04]} 20... Nc5 {[%clk 0:00:49.3]} 21. Bxc5
{[%clk 0:01:57]} 21... bxc5 {[%clk 0:00:38]} 22. g5 {[%clk 0:01:56.1]} 22... Nd7
{[%clk 0:00:32.8]} 23. Rxe4+ {[%clk 0:01:54.9]} 23... Kf8 {[%clk 0:00:33.4]} 24.
Qe2 {[%clk 0:01:53.5]} 24... g6 {[%clk 0:00:27.8]} 25. Qb2 {[%clk 0:01:30.8]}
25... f6 {[%clk 0:00:21.1]} 26. Rae1 {[%clk 0:01:29.8]} 26... Nb6 {[%clk
0:00:14.2]} 27. Re8+ {[%clk 0:01:25.9]} 27... Kf7 {[%clk 0:00:13.5]} 1-0

[Event "*** Titled Tuesday Blitz"]
[Site "Chess.com"]
[Date "2020.04.28"]
[Round "8"]
[White "Larisa004"]
[Black "NiranjanNavalgund"]
[Result "0-1"]
[WhiteElo "2136"]
[BlackElo "2488"]
[TimeControl "180+1"]
[EndTime "11:33:59 PDT"]
[Termination "NiranjanNavalgund won by checkmate"]

1. e4 {[%clk 0:03:00.9]} 1... c5 {[%clk 0:02:56.2]} 2. Nf3 {[%clk 0:03:00.8]}
2... Nc6 {[%clk 0:02:56.2]} 3. d4 {[%clk 0:03:00.3]} 3... cxd4 {[%clk
0:02:57.1]} 4. Nxd4 {[%clk 0:03:00.2]} 4... g6 {[%clk 0:02:57.5]} 5. Nc3 {[%clk
0:02:59.7]} 5... Bg7 {[%clk 0:02:57.8]} 6. Nb3 {[%clk 0:03:00]} 6... Nf6 {[%clk
0:02:57.8]} 7. Be2 {[%clk 0:03:00.1]} 7... O-O {[%clk 0:02:57.6]} 8. O-O {[%clk
0:03:00.2]} 8... a5 {[%clk 0:02:53.8]} 9. a4 {[%clk 0:02:59.1]} 9... d5 {[%clk
0:02:53.6]} 10. Nxd5 {[%clk 0:02:42.9]} 10... Nxe4 {[%clk 0:02:52.5]} 11. Bf3
{[%clk 0:02:37.5]} 11... Nd6 {[%clk 0:02:50.8]} 12. c3 {[%clk 0:02:34.1]} 12...
Ne5 {[%clk 0:02:49]} 13. Be2 {[%clk 0:02:32]} 13... Be6 {[%clk 0:02:46.3]} 14.
Nf4 {[%clk 0:02:30.2]} 14... Bc4 {[%clk 0:02:44.9]} 15. Nd4 {[%clk 0:02:20.4]}
15... Rc8 {[%clk 0:02:32]} 16. b3 {[%clk 0:02:18.5]} 16... Bxe2 {[%clk
0:02:31.4]} 17. Nfxe2 {[%clk 0:02:19.4]} 17... Ne4 {[%clk 0:02:28]} 18. c4
{[%clk 0:02:00.4]} 18... Qb6 {[%clk 0:02:09.6]} 19. Ba3 {[%clk 0:01:48.1]} 19...
Rfd8 {[%clk 0:01:56.9]} 20. Bxe7 {[%clk 0:00:54.7]} 20... Rd7 {[%clk 0:01:54.7]}
21. c5 {[%clk 0:00:54.8]} 21... Qb4 {[%clk 0:01:43.1]} 22. c6 {[%clk 0:00:35.5]}
22... Rxe7 {[%clk 0:01:42.4]} 23. cxb7 {[%clk 0:00:29.6]} 23... Rxb7 {[%clk
0:01:43.3]} 24. Qb1 {[%clk 0:00:20.3]} 24... Nd2 {[%clk 0:01:40.5]} 25. Qa2
{[%clk 0:00:11.4]} 25... Nxf1 {[%clk 0:01:40]} 26. Rxf1 {[%clk 0:00:11.9]} 26...
Nd3 {[%clk 0:01:39.3]} 27. Rd1 {[%clk 0:00:09.5]} 27... Bxd4 {[%clk 0:01:30.5]}
28. Rxd3 {[%clk 0:00:08.8]} 28... Qe1# {[%clk 0:01:29.9]} 0-1